{"text_format":"3","workbook":"xlsx","n_sheets":2,"sheets":["VERWENDEN DIESER ARBEITSMAPPE","NOTENSPIEGEL"],"not_rendered":{"defined_names":5},"read":"whole","date_system":"1900"}

{"sheet":"VERWENDEN DIESER ARBEITSMAPPE","index":0,"n_rows":10,"n_cols":2,"rows_kept":10}
[null,"ANWEISUNGEN"]
[null,"Verwenden Sie das Arbeitsblatt „Notenheft“, um Noten zu berechnen, wobei jede Aufgabe einer festgelegten Anzahl von Punkten entspricht. "]
[null,"Anweisungen:   Speichern Sie unbedingt Sicherungskopien Ihrer Noten."]
[null,"1. Geben Sie den Name der Schule, die Kursinformationen, die Namen der Kursteilnehmer und die Schüler/Studenten-IDs (optional) ein.   "]
[null,"2. Passen Sie die Tabelle Note & Notendurchschnitt an das normale Bewertungssystem an."]
[null,"3. Geben Sie die Aufgaben- oder Testnamen beginnend ab Zelle G7 zusammen mit dem dazugehörigen Prozentsatz ein, (z.B. \"Abgeschlossen\" und \"50%\"). "]
[null,"4. Geben Sie die Ergebnisse für jeden Schüler/Studenten für jede Aufgabe oder jeden Test ein. Die Spalten \"Punkte\", \"Ltr-Note\" und \"Notendurchschnitt\" werden automatisch berechnet, aber Sie können sie außer Kraft setzen, wenn Sie möchten. Die Durchschnitts- und die Endnote werden erst berechnet, wenn alle Ergebnisse vollständig sind."]
[null,"Verwenden Sie den Befehl \"Druckbereich\" im Menü \"Seitenlayout\", wenn Sie den Druckbereich ändern möchten."]
[null,"Die Punkte, die Ltr-Note und der Notendurchschnitt sind erst gültig, wenn 100% der Tests und Aufgaben abgeschlossen wurden. "]
[null,"Geben Sie jede Aufgabe oder jeden Test und den dazugehörigen Prozentsatz der Gesamtnote in die Zellen G7 bis W8 ein."]

{"sheet":"NOTENSPIEGEL","index":1,"n_rows":20,"n_cols":23,"rows_kept":20,"merged":[[5,1,5,5],[6,1,6,3],[6,4,6,5],[7,1,8,3],[7,4,7,5],[8,4,8,5],[16,1,16,2],[17,1,17,2],[18,1,18,2],[19,1,19,2]]}
[null,"Upper Talbot High School"]
[]
[{"$nulls":6},"Punkte",{"v":0,"d":"0%"},{"v":0.6,"d":"60%"},{"v":0.63,"d":"63%"},{"v":0.67,"d":"67%"},{"v":0.7,"d":"70%"},{"v":0.73,"d":"73%"},{"v":0.77,"d":"77%"},{"v":0.8,"d":"80%"},{"v":0.83,"d":"83%"},{"v":0.87,"d":"87%"},{"v":0.9,"d":"90%"},{"v":0.93,"d":"93%"},{"v":0.97,"d":"97%"}]
[{"$nulls":6},"Ltr-Note","F","D-","D","D+","C-","C","C+","B-","B","B+","A-","A","A+"]
[{"$nulls":6},"GPA",0,0.67,1,1.33,1.67,2,2.33,2.67,3,3.33,3.67,4,4]
[null,"Ayano Harada"]
[null,"Weltgeschichte II",null,null,"Arbeitsauftrag"]
[null,"Frühjahrssemester 2023",null,null,"Prozentsatz (sollte insgesamt 100% sein)"]
[{"$nulls":4},{"$f":"\"Gesamter Prozentsatz: \"&SUM(G8:BZ8)*100&\"%\"","v":"Gesamter Prozentsatz: 0%"}]
[null,"Name des Studenten","ID-Nummer des Schülers","Punkte","Ltr-Note","GPA","Spalte6","Spalte7","Spalte8","Spalte9","Spalte10","Spalte11","Spalte12","Spalte13","Spalte14","Spalte15","Spalte16","Spalte17","Spalte18","Spalte19","Spalte20","Spalte21","Spalte22"]
[null,"Gianni Castiglione",654987,{"$f":"(IF(SUM(Noten[[#This Row],[Spalte6]:[Spalte22]]),ROUND(SUMPRODUCT($G$8:$W$8,Noten[[#This Row],[Spalte6]:[Spalte22]]),2),\"\"))","v":""},{"$f":"IF(Noten[[#This Row],[Punkte]]<>\"\",HLOOKUP(Noten[[#This Row],[Punkte]],NotenTabelle,2),\"\")","v":""},{"$f":"IF(Noten[[#This Row],[Punkte]]<>\"\",HLOOKUP(Noten[[#This Row],[Punkte]],NotenTabelle,3),\"\")","v":""}]
[null,"Nat Rattanakoson",134698,{"$f":"(IF(SUM(Noten[[#This Row],[Spalte6]:[Spalte22]]),ROUND(SUMPRODUCT($G$8:$W$8,Noten[[#This Row],[Spalte6]:[Spalte22]]),2),\"\"))","v":""},{"$f":"IF(Noten[[#This Row],[Punkte]]<>\"\",HLOOKUP(Noten[[#This Row],[Punkte]],NotenTabelle,2),\"\")","v":""},{"$f":"IF(Noten[[#This Row],[Punkte]]<>\"\",HLOOKUP(Noten[[#This Row],[Punkte]],NotenTabelle,3),\"\")","v":""}]
[null,"Juan Morgan",613467,{"$f":"(IF(SUM(Noten[[#This Row],[Spalte6]:[Spalte22]]),ROUND(SUMPRODUCT($G$8:$W$8,Noten[[#This Row],[Spalte6]:[Spalte22]]),2),\"\"))","v":""},{"$f":"IF(Noten[[#This Row],[Punkte]]<>\"\",HLOOKUP(Noten[[#This Row],[Punkte]],NotenTabelle,2),\"\")","v":""},{"$f":"IF(Noten[[#This Row],[Punkte]]<>\"\",HLOOKUP(Noten[[#This Row],[Punkte]],NotenTabelle,3),\"\")","v":""}]
[{"$nulls":3},{"$f":"(IF(SUM(Noten[[#This Row],[Spalte6]:[Spalte22]]),ROUND(SUMPRODUCT($G$8:$W$8,Noten[[#This Row],[Spalte6]:[Spalte22]]),2),\"\"))","v":""},{"$f":"IF(Noten[[#This Row],[Punkte]]<>\"\",HLOOKUP(Noten[[#This Row],[Punkte]],NotenTabelle,2),\"\")","v":""},{"$f":"IF(Noten[[#This Row],[Punkte]]<>\"\",HLOOKUP(Noten[[#This Row],[Punkte]],NotenTabelle,3),\"\")","v":""}]
[{"$nulls":3},{"$f":"(IF(SUM(Noten[[#This Row],[Spalte6]:[Spalte22]]),ROUND(SUMPRODUCT($G$8:$W$8,Noten[[#This Row],[Spalte6]:[Spalte22]]),2),\"\"))","v":""},{"$f":"IF(Noten[[#This Row],[Punkte]]<>\"\",HLOOKUP(Noten[[#This Row],[Punkte]],NotenTabelle,2),\"\")","v":""},{"$f":"IF(Noten[[#This Row],[Punkte]]<>\"\",HLOOKUP(Noten[[#This Row],[Punkte]],NotenTabelle,3),\"\")","v":""}]
[]
[null,"Klassenzusammenfassung",null,"Punkte","Ltr-Note","GPA","","","","","","","","","","",""]
[null," Mittelwert",null,{"$f":"IFERROR(AVERAGE(Noten[[#All],[Punkte]]),0)","v":{"v":0,"d":"0.0%"}},{"$f":"IFERROR(HLOOKUP(D18,NotenTabelle,2),\"\")","v":"F"},{"$f":"IFERROR(AVERAGE(Noten[[#All],[GPA]]),0)","v":0},"","","","","","","","","","","","","","","","",""]
[null," Höchste Punktzahl",null,{"$f":"IFERROR(MAX(Noten[[#All],[Punkte]]),0)","v":{"v":0,"d":"0.0%"}},{"$f":"IFERROR(HLOOKUP(D19,NotenTabelle,2),\"\")","v":"F"},{"$f":"IFERROR(MAX(Noten[[#All],[GPA]]),0)","v":0},"","","","","","","","","","","","","","","","",""]
[null," Niedrigste Punktzahl",null,{"$f":"IFERROR(MIN(Noten[[#All],[Punkte]]),0)","v":{"v":0,"d":"0.0%"}},{"$f":"IFERROR(HLOOKUP(D20,NotenTabelle,2),\"\")","v":"F"},{"$f":"IFERROR(MIN(Noten[[#All],[GPA]]),0)","v":0},"","","","","","","","","","","","","","","","",""]